[Event "Late-Titled-Tuesday-Blitz-October-03-2023"]
[Site "Chess.com"]
[Date "2023.10.03"]
[Round "10"]
[White "canary2016"]
[Black "alfianasybullina"]
[Result "1-0"]
[WhiteElo "2176"]
[BlackElo "2382"]
[TimeControl "180+1"]
[EndTime "15:49:41 PDT"]
[Termination "canary2016 won by resignation"]

1. e4 {[%clk 0:03:00.9]} 1... c6 {[%clk 0:02:59.7]} 2. d4 {[%clk 0:02:59.8]}
2... d5 {[%clk 0:03:00.3]} 3. Nc3 {[%clk 0:02:59.7]} 3... dxe4 {[%clk
0:02:58.3]} 4. Nxe4 {[%clk 0:03:00.6]} 4... Nd7 {[%clk 0:02:57.9]} 5. Nf3 {[%clk
0:02:56.5]} 5... Ngf6 {[%clk 0:02:57.8]} 6. Ng3 {[%clk 0:02:55.2]} 6... e6
{[%clk 0:02:46.9]} 7. Bd3 {[%clk 0:02:52.5]} 7... Bd6 {[%clk 0:02:45.6]} 8. O-O
{[%clk 0:02:51.5]} 8... O-O {[%clk 0:02:44.4]} 9. Ne4 {[%clk 0:02:49.4]} 9...
Nxe4 {[%clk 0:02:42.7]} 10. Bxe4 {[%clk 0:02:48.9]} 10... Nf6 {[%clk 0:02:41.9]}
11. Bd3 {[%clk 0:02:48.6]} 11... h6 {[%clk 0:02:40.2]} 12. c3 {[%clk 0:02:47.9]}
12... c5 {[%clk 0:02:39]} 13. dxc5 {[%clk 0:02:44.6]} 13... Bxc5 {[%clk
0:02:37.9]} 14. Bf4 {[%clk 0:02:43.9]} 14... b6 {[%clk 0:02:32]} 15. Qc2 {[%clk
0:02:38.6]} 15... Bb7 {[%clk 0:02:30.6]} 16. Ne5 {[%clk 0:02:32.8]} 16... Nd5
{[%clk 0:02:27.5]} 17. Bg3 {[%clk 0:02:31.4]} 17... Rc8 {[%clk 0:02:09.5]} 18.
Rad1 {[%clk 0:02:25.7]} 18... Qf6 {[%clk 0:01:58.5]} 19. Nd7 {[%clk 0:02:17.3]}
19... Qg5 {[%clk 0:01:54.3]} 20. Nxf8 {[%clk 0:02:14.1]} 20... Bxf8 {[%clk
0:01:55.2]} 21. Be4 {[%clk 0:02:08.3]} 21... f5 {[%clk 0:01:47.9]} 22. Bf3
{[%clk 0:02:03.8]} 22... f4 {[%clk 0:01:43]} 23. Qe4 {[%clk 0:01:57.9]} 23...
Qf5 {[%clk 0:01:28.7]} 24. Qxf5 {[%clk 0:01:53.5]} 24... exf5 {[%clk 0:01:24.1]}
25. Bxd5+ {[%clk 0:01:52.1]} 25... Bxd5 {[%clk 0:01:22.3]} 26. Rxd5 {[%clk
0:01:50.7]} 26... fxg3 {[%clk 0:01:22.7]} 27. hxg3 {[%clk 0:01:50.9]} 27... g6
{[%clk 0:01:17.4]} 28. Rd7 {[%clk 0:01:49.9]} 28... a5 {[%clk 0:01:15.2]} 29.
Re1 {[%clk 0:01:48.9]} 29... b5 {[%clk 0:00:52.9]} 30. Re6 {[%clk 0:01:44.9]}
30... g5 {[%clk 0:00:52.9]} 31. Rb6 {[%clk 0:01:40.3]} 31... b4 {[%clk
0:00:50.9]} 32. cxb4 {[%clk 0:01:39.8]} 32... axb4 {[%clk 0:00:50.3]} 33. Rb5
{[%clk 0:01:39.4]} 33... Ra8 {[%clk 0:00:18.1]} 34. Rxf5 {[%clk 0:01:36.3]}
34... Bg7 {[%clk 0:00:18]} 35. Rb5 {[%clk 0:01:25]} 35... Rxa2 {[%clk
0:00:16.6]} 36. Rxb4 {[%clk 0:01:24.9]} 36... Rxb2 {[%clk 0:00:16.8]} 37. Rxg7+
{[%clk 0:01:22.2]} 37... Kxg7 {[%clk 0:00:17.7]} 38. Rxb2 {[%clk 0:01:22.2]} 1-0

[Event "Late-Titled-Tuesday-Blitz-October-03-2023"]
[Site "Chess.com"]
[Date "2023.10.03"]
[Round "10"]
[White "angryspacevoid"]
[Black "AsaHoffmann"]
[Result "1-0"]
[WhiteElo "2537"]
[BlackElo "2368"]
[TimeControl "180+1"]
[EndTime "15:49:42 PDT"]
[Termination "angryspacevoid won by resignation"]

1. e4 {[%clk 0:03:00.9]} 1... d6 {[%clk 0:02:46.7]} 2. d4 {[%clk 0:02:56.7]}
2... Nf6 {[%clk 0:02:46.3]} 3. f3 {[%clk 0:02:55.9]} 3... Nbd7 {[%clk
0:02:45.2]} 4. g4 {[%clk 0:02:56.4]} 4... e5 {[%clk 0:02:44.7]} 5. g5 {[%clk
0:02:55.7]} 5... Nh5 {[%clk 0:02:43.1]} 6. Ne2 {[%clk 0:02:53.4]} 6... g6 {[%clk
0:02:40.6]} 7. Ng3 {[%clk 0:02:51.2]} 7... Nf4 {[%clk 0:02:37.4]} 8. h4 {[%clk
0:02:46.7]} 8... Bg7 {[%clk 0:02:36.9]} 9. Nc3 {[%clk 0:02:42.4]} 9... exd4
{[%clk 0:02:34.1]} 10. Nce2 {[%clk 0:02:34.5]} 10... Ne6 {[%clk 0:02:28.8]} 11.
f4 {[%clk 0:02:33.8]} 11... c5 {[%clk 0:02:27.4]} 12. f5 {[%clk 0:02:31]} 12...
Nc7 {[%clk 0:02:24.1]} 13. f6 {[%clk 0:02:23]} 13... Bf8 {[%clk 0:02:22.6]} 14.
h5 {[%clk 0:02:22.6]} 14... Ne5 {[%clk 0:02:15]} 15. Nf4 {[%clk 0:02:22]} 15...
Ne6 {[%clk 0:02:09.4]} 16. hxg6 {[%clk 0:02:12.5]} 16... fxg6 {[%clk 0:01:58.2]}
17. Bb5+ {[%clk 0:02:11.5]} 17... Kf7 {[%clk 0:01:56.2]} 18. Be2 {[%clk
0:02:02.3]} 18... Nxg5 {[%clk 0:01:49.7]} 19. c3 {[%clk 0:02:00.4]} 19... dxc3
{[%clk 0:01:41.7]} 20. Qb3+ {[%clk 0:01:59.4]} 20... c4 {[%clk 0:01:26.8]} 21.
Qxc3 {[%clk 0:01:55.3]} 21... Qxf6 {[%clk 0:01:22.1]} 22. O-O {[%clk 0:01:44.8]}
22... Ke8 {[%clk 0:01:10.1]} 23. Nd5 {[%clk 0:01:23.4]} 23... Qg7 {[%clk
0:00:56.1]} 24. Bxg5 {[%clk 0:01:22.5]} 24... Be6 {[%clk 0:00:40.8]} 25. Bxc4
{[%clk 0:01:09.1]} 25... Rc8 {[%clk 0:00:39.2]} 26. Bb5+ {[%clk 0:01:08.2]}
26... Nc6 {[%clk 0:00:32.5]} 27. Nf6+ {[%clk 0:01:02]} 27... Kd8 {[%clk
0:00:31.1]} 28. Nfh5+ {[%clk 0:01:01.8]} 28... Qe7 {[%clk 0:00:27]} 29. Bxe7+
{[%clk 0:01:01.6]} 29... Bxe7 {[%clk 0:00:26.9]} 30. Qxh8+ {[%clk 0:01:01.7]}
30... Kd7 {[%clk 0:00:25.7]} 31. Bxc6+ {[%clk 0:00:55.4]} 1-0

[Event "Late-Titled-Tuesday-Blitz-October-03-2023"]
[Site "Chess.com"]
[Date "2023.10.03"]
[Round "10"]
[White "Bauman_Guy"]
[Black "RETURNOFTHELAGGER"]
[Result "1-0"]
[WhiteElo "2862"]
[BlackElo "2679"]
[TimeControl "180+1"]
[EndTime "15:49:44 PDT"]
[Termination "Bauman_Guy won by resignation"]

1. e4 {[%clk 0:03:00.9]} 1... c5 {[%clk 0:02:46.2]} 2. Nf3 {[%clk 0:02:59.4]}
2... d6 {[%clk 0:02:46.3]} 3. d4 {[%clk 0:03:00]} 3... cxd4 {[%clk 0:02:47.2]}
4. Nxd4 {[%clk 0:03:00.9]} 4... Nf6 {[%clk 0:02:46.7]} 5. Nc3 {[%clk 0:03:01.4]}
5... a6 {[%clk 0:02:46]} 6. h3 {[%clk 0:02:59.7]} 6... e5 {[%clk 0:02:44.8]} 7.
Nde2 {[%clk 0:02:59.7]} 7... h5 {[%clk 0:02:45.7]} 8. Bg5 {[%clk 0:03:00.1]}
8... Be7 {[%clk 0:02:43]} 9. Ng3 {[%clk 0:02:59.6]} 9... g6 {[%clk 0:02:39]} 10.
Bc4 {[%clk 0:02:59.2]} 10... Nbd7 {[%clk 0:02:35.7]} 11. Bxf6 {[%clk 0:02:43.9]}
11... Nxf6 {[%clk 0:02:29.8]} 12. Nd5 {[%clk 0:02:43.5]} 12... O-O {[%clk
0:02:27.9]} 13. O-O {[%clk 0:02:40.6]} 13... b5 {[%clk 0:02:26.5]} 14. Nxf6+
{[%clk 0:02:32.4]} 14... Bxf6 {[%clk 0:02:27.4]} 15. Bd5 {[%clk 0:02:32.9]}
15... Ra7 {[%clk 0:02:23.1]} 16. a4 {[%clk 0:02:32.8]} 16... bxa4 {[%clk
0:02:20]} 17. Rxa4 {[%clk 0:02:32.3]} 17... Kg7 {[%clk 0:02:18.5]} 18. b4 {[%clk
0:02:27.9]} 18... Bb7 {[%clk 0:02:17]} 19. c4 {[%clk 0:02:22.3]} 19... Qb6
{[%clk 0:02:13.6]} 20. Qd3 {[%clk 0:02:17.5]} 20... Rc8 {[%clk 0:02:09]} 21.
Rfa1 {[%clk 0:02:17.3]} 21... Bxd5 {[%clk 0:02:01.1]} 22. cxd5 {[%clk 0:02:16]}
22... Rac7 {[%clk 0:01:47.4]} 23. Qxa6 {[%clk 0:02:09.9]} 23... Qd4 {[%clk
0:01:43]} 24. b5 {[%clk 0:01:31.5]} 24... Rc1+ {[%clk 0:01:42.6]} 25. Nf1 {[%clk
0:01:30.2]} 25... Rxa1 {[%clk 0:01:24.8]} 26. Rxa1 {[%clk 0:01:30.2]} 26... Bh4
{[%clk 0:01:25.5]} 27. Ra2 {[%clk 0:01:18.6]} 27... Rc1 {[%clk 0:01:18.7]} 28.
b6 {[%clk 0:01:13.9]} 28... Bxf2+ {[%clk 0:00:37.2]} 29. Kh2 {[%clk 0:01:09.3]}
29... Bg1+ {[%clk 0:00:30.3]} 30. Kh1 {[%clk 0:01:08.5]} 30... Rxf1 {[%clk
0:00:29]} 31. Qxf1 {[%clk 0:01:06.6]} 31... Qxb6 {[%clk 0:00:25.5]} 32. Qxg1
{[%clk 0:01:05.9]} 1-0

[Event "Late-Titled-Tuesday-Blitz-October-03-2023"]
[Site "Chess.com"]
[Date "2023.10.03"]
[Round "10"]
[White "KorolDimitriy75"]
[Black "Sjakkerntobi"]
[Result "0-1"]
[WhiteElo "2374"]
[BlackElo "2516"]
[TimeControl "180+1"]
[EndTime "15:49:54 PDT"]
[Termination "Sjakkerntobi won on time"]

1. d4 {[%clk 0:03:00.9]} 1... Nf6 {[%clk 0:02:59.9]} 2. c4 {[%clk 0:03:01.1]}
2... e6 {[%clk 0:03:00.4]} 3. Nc3 {[%clk 0:03:01.2]} 3... c5 {[%clk 0:03:00.9]}
4. d5 {[%clk 0:03:01.3]} 4... exd5 {[%clk 0:03:01.8]} 5. cxd5 {[%clk 0:03:02]}
5... d6 {[%clk 0:03:02.7]} 6. Nf3 {[%clk 0:03:02.4]} 6... g6 {[%clk 0:03:03.6]}
7. Nd2 {[%clk 0:03:02.7]} 7... Bg7 {[%clk 0:03:04.5]} 8. Nc4 {[%clk 0:03:03.3]}
8... O-O {[%clk 0:03:05.4]} 9. Bf4 {[%clk 0:03:03.7]} 9... Ne8 {[%clk 0:03:06]}
10. Qd2 {[%clk 0:03:03.9]} 10... b6 {[%clk 0:03:06]} 11. a4 {[%clk 0:02:59.2]}
11... Ba6 {[%clk 0:03:05.7]} 12. e4 {[%clk 0:02:56.1]} 12... Bxc4 {[%clk
0:03:05.5]} 13. Bxc4 {[%clk 0:02:56.6]} 13... Nd7 {[%clk 0:03:06.4]} 14. O-O
{[%clk 0:02:55]} 14... Ne5 {[%clk 0:03:04]} 15. Be2 {[%clk 0:02:53.8]} 15... Nc7
{[%clk 0:03:04]} 16. Rfe1 {[%clk 0:02:50.7]} 16... Rb8 {[%clk 0:03:01.7]} 17.
Bg5 {[%clk 0:02:29]} 17... Bf6 {[%clk 0:03:01.5]} 18. Bh6 {[%clk 0:02:23]} 18...
Bg7 {[%clk 0:03:01.9]} 19. Bg5 {[%clk 0:02:23]} 19... Qc8 {[%clk 0:02:57.4]} 20.
h3 {[%clk 0:02:16.6]} 20... a6 {[%clk 0:02:50.1]} 21. f4 {[%clk 0:02:15.4]}
21... Nd7 {[%clk 0:02:50.4]} 22. e5 {[%clk 0:01:30.2]} 22... dxe5 {[%clk
0:02:48]} 23. d6 {[%clk 0:01:30.4]} 23... Ne6 {[%clk 0:02:48.4]} 24. Nd5 {[%clk
0:01:30.4]} 24... Qb7 {[%clk 0:02:44.5]} 25. Bf3 {[%clk 0:01:29.8]} 25... Qa7
{[%clk 0:02:38.9]} 26. Ne7+ {[%clk 0:01:28]} 26... Kh8 {[%clk 0:02:38.7]} 27.
Nc6 {[%clk 0:01:27.5]} 27... Qb7 {[%clk 0:02:33.6]} 28. Nxe5 {[%clk 0:00:54.8]}
28... Qc8 {[%clk 0:02:30.9]} 29. Nxf7+ {[%clk 0:00:54.7]} 29... Rxf7 {[%clk
0:02:30.5]} 30. Rxe6 {[%clk 0:00:55.3]} 30... c4 {[%clk 0:01:58]} 31. Re7 {[%clk
0:00:50.1]} 31... Rxe7 {[%clk 0:01:43.7]} 32. dxe7 {[%clk 0:00:49.4]} 32... Nc5
{[%clk 0:01:37.7]} 33. Qd8+ {[%clk 0:00:26]} 33... Qxd8 {[%clk 0:01:36.9]} 34.
exd8=Q+ {[%clk 0:00:25.9]} 34... Rxd8 {[%clk 0:01:37.8]} 35. Bxd8 {[%clk
0:00:24.7]} 35... Bxb2 {[%clk 0:01:38.7]} 36. Rb1 {[%clk 0:00:17.7]} 36... c3
{[%clk 0:01:38.5]} 37. Rxb2 {[%clk 0:00:07.2]} 37... cxb2 {[%clk 0:01:38.2]} 38.
Bf6+ {[%clk 0:00:07.4]} 38... Kg8 {[%clk 0:01:38.2]} 39. Bxb2 {[%clk 0:00:06.5]}
39... Nxa4 {[%clk 0:01:38.6]} 40. Bd5+ {[%clk 0:00:05.9]} 40... Kf8 {[%clk
0:01:37.1]} 41. Bd4 {[%clk 0:00:03.9]} 41... b5 {[%clk 0:01:36.6]} 42. g4 {[%clk
0:00:02.9]} 42... b4 {[%clk 0:01:35.2]} 43. Kf2 {[%clk 0:00:01.1]} 43... Nc3
{[%clk 0:01:33.8]} 0-1

[Event "Late-Titled-Tuesday-Blitz-October-03-2023"]
[Site "Chess.com"]
[Date "2023.10.03"]
[Round "10"]
[White "C_K_G"]
[Black "Elbebiber"]
[Result "1-0"]
[WhiteElo "1930"]
[BlackElo "2132"]
[TimeControl "180+1"]
[EndTime "15:50:05 PDT"]
[Termination "C_K_G won by checkmate"]

1. e4 {[%clk 0:03:00.9]} 1... d5 {[%clk 0:02:59.3]} 2. exd5 {[%clk 0:03:00.2]}
2... Nf6 {[%clk 0:02:58.5]} 3. d4 {[%clk 0:02:59.3]} 3... Nxd5 {[%clk
0:02:53.4]} 4. c4 {[%clk 0:02:58.3]} 4... Nb6 {[%clk 0:02:53.3]} 5. h3 {[%clk
0:02:53.7]} 5... e5 {[%clk 0:02:45.8]} 6. d5 {[%clk 0:02:49.2]} 6... Bc5 {[%clk
0:02:31.2]} 7. Nc3 {[%clk 0:02:30.5]} 7... O-O {[%clk 0:02:16.1]} 8. Nf3 {[%clk
0:02:26.9]} 8... e4 {[%clk 0:01:54.4]} 9. Nd4 {[%clk 0:02:21.6]} 9... Qf6 {[%clk
0:01:43.3]} 10. Be3 {[%clk 0:02:20.1]} 10... Re8 {[%clk 0:01:36.6]} 11. Be2
{[%clk 0:02:14.3]} 11... N8d7 {[%clk 0:01:27]} 12. O-O {[%clk 0:02:05.9]} 12...
Ne5 {[%clk 0:01:26.3]} 13. Nxe4 {[%clk 0:01:56]} 13... Qe7 {[%clk 0:01:19.6]}
14. Nxc5 {[%clk 0:01:45.1]} 14... Qxc5 {[%clk 0:01:19.7]} 15. Nb5 {[%clk
0:00:54.7]} 15... Qe7 {[%clk 0:01:15]} 16. b3 {[%clk 0:00:46.3]} 16... a6 {[%clk
0:01:12.7]} 17. d6 {[%clk 0:00:42.5]} 17... cxd6 {[%clk 0:01:03.6]} 18. Qxd6
{[%clk 0:00:36.9]} 18... axb5 {[%clk 0:00:50.3]} 19. Qxb6 {[%clk 0:00:36.3]}
19... bxc4 {[%clk 0:00:47]} 20. Bxc4 {[%clk 0:00:34.4]} 20... Nxc4 {[%clk
0:00:42.5]} 21. bxc4 {[%clk 0:00:35.3]} 21... Ra6 {[%clk 0:00:38.4]} 22. Qb5
{[%clk 0:00:28.9]} 22... Be6 {[%clk 0:00:23.2]} 23. Bc5 {[%clk 0:00:22.2]} 23...
Qc7 {[%clk 0:00:20.3]} 24. Qxe8# {[%clk 0:00:20.6]} 1-0

[Event "Late-Titled-Tuesday-Blitz-October-03-2023"]
[Site "Chess.com"]
[Date "2023.10.03"]
[Round "10"]
[White "alexrustemov"]
[Black "RichardLeyvaP"]
[Result "1-0"]
[WhiteElo "2829"]
[BlackElo "2622"]
[TimeControl "180+1"]
[EndTime "15:50:06 PDT"]
[Termination "alexrustemov won by resignation"]

1. d4 {[%clk 0:03:00.9]} 1... Nf6 {[%clk 0:02:56.5]} 2. c4 {[%clk 0:03:01.3]}
2... g6 {[%clk 0:02:56.3]} 3. Nf3 {[%clk 0:03:01.7]} 3... Bg7 {[%clk 0:02:56.7]}
4. g3 {[%clk 0:03:02.3]} 4... d6 {[%clk 0:02:57.1]} 5. Bg2 {[%clk 0:03:02.9]}
5... O-O {[%clk 0:02:57.6]} 6. Nc3 {[%clk 0:03:03.3]} 6... c6 {[%clk 0:02:58.1]}
7. O-O {[%clk 0:03:03.7]} 7... Qa5 {[%clk 0:02:58.4]} 8. h3 {[%clk 0:03:03.4]}
8... Be6 {[%clk 0:02:57.5]} 9. Nd2 {[%clk 0:03:02.1]} 9... Qa6 {[%clk 0:02:57]}
10. b3 {[%clk 0:03:00.8]} 10... d5 {[%clk 0:02:57.5]} 11. cxd5 {[%clk
0:02:54.3]} 11... Nxd5 {[%clk 0:02:56.9]} 12. Nxd5 {[%clk 0:02:48.2]} 12... Bxd5
{[%clk 0:02:57]} 13. Bb2 {[%clk 0:02:46.1]} 13... Bxg2 {[%clk 0:02:50.2]} 14.
Kxg2 {[%clk 0:02:47]} 14... Rd8 {[%clk 0:02:50.2]} 15. e3 {[%clk 0:02:41.6]}
15... Nd7 {[%clk 0:02:42.8]} 16. Qc2 {[%clk 0:02:30.9]} 16... Nf6 {[%clk
0:02:36.1]} 17. Nc4 {[%clk 0:02:24]} 17... Rac8 {[%clk 0:02:35.1]} 18. Rfd1
{[%clk 0:02:23.3]} 18... Qb5 {[%clk 0:02:28.8]} 19. Qe2 {[%clk 0:02:21.2]} 19...
Qd5+ {[%clk 0:02:27.5]} 20. Qf3 {[%clk 0:02:21.4]} 20... Ne4 {[%clk 0:02:22.7]}
21. Rac1 {[%clk 0:02:16.1]} 21... h5 {[%clk 0:01:56.6]} 22. h4 {[%clk
0:02:13.7]} 22... Nf6 {[%clk 0:01:49]} 23. Ne5 {[%clk 0:02:07.8]} 23... Qxf3+
{[%clk 0:01:46.5]} 24. Kxf3 {[%clk 0:02:07.2]} 24... Nd5 {[%clk 0:01:46.2]} 25.
Nd3 {[%clk 0:02:06.7]} 25... Kf8 {[%clk 0:01:37.4]} 26. Ke2 {[%clk 0:02:03.1]}
26... Ke8 {[%clk 0:01:36]} 27. Rc2 {[%clk 0:02:02.5]} 27... Bf6 {[%clk
0:01:36.1]} 28. Rdc1 {[%clk 0:02:01.8]} 28... Rb8 {[%clk 0:01:35.7]} 29. a4
{[%clk 0:01:59.4]} 29... e6 {[%clk 0:01:31.1]} 30. Ba3 {[%clk 0:01:53.6]} 30...
Be7 {[%clk 0:01:30.7]} 31. Bxe7 {[%clk 0:01:52.9]} 31... Kxe7 {[%clk 0:01:27.1]}
32. b4 {[%clk 0:01:52.3]} 32... Kd6 {[%clk 0:01:19]} 33. a5 {[%clk 0:01:50.7]}
33... a6 {[%clk 0:01:18.3]} 34. e4 {[%clk 0:01:49.8]} 34... Nc7 {[%clk
0:01:16.4]} 35. Ke3 {[%clk 0:01:45.3]} 35... Ke7 {[%clk 0:01:16.2]} 36. Rd2
{[%clk 0:01:41.1]} 36... Rd6 {[%clk 0:01:14.7]} 37. Nc5 {[%clk 0:01:40.2]} 37...
Nb5 {[%clk 0:01:13.2]} 38. Rd3 {[%clk 0:01:37.4]} 38... Kd8 {[%clk 0:01:12.6]}
39. Rcd1 {[%clk 0:01:33.5]} 39... Kc7 {[%clk 0:01:12.8]} 40. R1d2 {[%clk
0:01:21.8]} 40... Rbd8 {[%clk 0:01:12.2]} 41. f3 {[%clk 0:01:22.1]} 41... Rg8
{[%clk 0:01:05.8]} 42. Kf4 {[%clk 0:01:20.5]} 42... f6 {[%clk 0:01:01.6]} 43. e5
{[%clk 0:01:14.3]} 43... fxe5+ {[%clk 0:00:54.4]} 44. dxe5 {[%clk 0:01:14.9]}
44... Rxd3 {[%clk 0:00:49.9]} 45. Rxd3 {[%clk 0:01:15.1]} 45... Rf8+ {[%clk
0:00:39.4]} 46. Kg5 {[%clk 0:01:12.9]} 46... Rf5+ {[%clk 0:00:39.4]} 47. Kxg6
{[%clk 0:01:12.9]} 47... Rxe5 {[%clk 0:00:40.3]} 48. g4 {[%clk 0:01:08.4]} 48...
hxg4 {[%clk 0:00:35.1]} 49. fxg4 {[%clk 0:01:09.3]} 49... Nd6 {[%clk 0:00:31.3]}
50. h5 {[%clk 0:01:09.7]} 1-0

[Event "Late-Titled-Tuesday-Blitz-October-03-2023"]
[Site "Chess.com"]
[Date "2023.10.03"]
[Round "10"]
[White "Ducke13"]
[Black "GoltsevDmitry2000"]
[Result "0-1"]
[WhiteElo "2478"]
[BlackElo "2676"]
[TimeControl "180+1"]
[EndTime "15:50:10 PDT"]
[Termination "GoltsevDmitry2000 won on time"]

1. d4 {[%clk 0:02:50.9]} 1... Nf6 {[%clk 0:02:58.7]} 2. g3 {[%clk 0:02:50]} 2...
c6 {[%clk 0:02:56]} 3. c4 {[%clk 0:02:49.4]} 3... d5 {[%clk 0:02:56.9]} 4. Nf3
{[%clk 0:02:49.8]} 4... dxc4 {[%clk 0:02:56.7]} 5. Bg2 {[%clk 0:02:49]} 5... g6
{[%clk 0:02:56.7]} 6. a4 {[%clk 0:02:45.4]} 6... Bg7 {[%clk 0:02:54.2]} 7. O-O
{[%clk 0:02:45]} 7... O-O {[%clk 0:02:50.9]} 8. Na3 {[%clk 0:02:45.5]} 8... Be6
{[%clk 0:02:49]} 9. Ng5 {[%clk 0:02:45.7]} 9... Bf5 {[%clk 0:02:46.4]} 10. Nxc4
{[%clk 0:02:36.6]} 10... h6 {[%clk 0:02:45]} 11. Nf3 {[%clk 0:02:36.7]} 11...
Nbd7 {[%clk 0:02:45.3]} 12. a5 {[%clk 0:02:31]} 12... Ne4 {[%clk 0:02:35]} 13.
a6 {[%clk 0:02:06.3]} 13... b5 {[%clk 0:02:28.2]} 14. Nce5 {[%clk 0:02:06.5]}
14... Nxe5 {[%clk 0:02:25.1]} 15. Nxe5 {[%clk 0:02:07.4]} 15... Rc8 {[%clk
0:02:13.8]} 16. Bf4 {[%clk 0:02:04.2]} 16... g5 {[%clk 0:02:12.7]} 17. Be3
{[%clk 0:02:03.8]} 17... c5 {[%clk 0:02:12.3]} 18. g4 {[%clk 0:01:49.8]} 18...
Bh7 {[%clk 0:02:08.5]} 19. Nf3 {[%clk 0:01:40]} 19... c4 {[%clk 0:02:04.6]} 20.
Ne5 {[%clk 0:01:39.2]} 20... f6 {[%clk 0:01:56.3]} 21. Nf3 {[%clk 0:01:36.2]}
21... Qd7 {[%clk 0:01:56.4]} 22. h3 {[%clk 0:01:34.7]} 22... b4 {[%clk 0:01:53]}
23. Qa4 {[%clk 0:01:33.1]} 23... Qxa4 {[%clk 0:01:46.4]} 24. Rxa4 {[%clk
0:01:34]} 24... Rb8 {[%clk 0:01:47.1]} 25. Rc1 {[%clk 0:01:32.3]} 25... c3
{[%clk 0:01:45.8]} 26. b3 {[%clk 0:01:12.7]} 26... Rfc8 {[%clk 0:01:35.1]} 27.
d5 {[%clk 0:01:12.4]} 27... c2 {[%clk 0:01:32.8]} 28. Bxa7 {[%clk 0:01:06.3]}
28... Ra8 {[%clk 0:01:28.8]} 29. Be3 {[%clk 0:01:06.2]} 29... Nc3 {[%clk
0:01:28.7]} 30. Nd4 {[%clk 0:00:33.5]} 30... Nxa4 {[%clk 0:01:26.5]} 31. bxa4
{[%clk 0:00:33.5]} 31... Rxa6 {[%clk 0:01:23.6]} 32. Nc6 {[%clk 0:00:32.6]}
32... b3 {[%clk 0:01:16.6]} 33. Nxe7+ {[%clk 0:00:16.5]} 33... Kh8 {[%clk
0:01:14.9]} 34. Bd4 {[%clk 0:00:11.5]} 34... f5 {[%clk 0:01:08.2]} 35. Bxg7+
{[%clk 0:00:01.9]} 35... Kxg7 {[%clk 0:01:08.4]} 36. gxf5 {[%clk 0:00:01.2]}
36... b2 {[%clk 0:01:07.7]} 37. Nxc8 {[%clk 0:00:01.2]} 37... bxc1=Q+ {[%clk
0:01:07.7]} 38. Kh2 {[%clk 0:00:01.8]} 38... Qf4+ {[%clk 0:01:08.2]} 0-1

[Event "Late-Titled-Tuesday-Blitz-October-03-2023"]
[Site "Chess.com"]
[Date "2023.10.03"]
[Round "10"]
[White "nihalsarin"]
[Black "BardArtem"]
[Result "1-0"]
[WhiteElo "3067"]
[BlackElo "2816"]
[TimeControl "180+1"]
[EndTime "15:50:18 PDT"]
[Termination "nihalsarin won on time"]

1. a3 {[%clk 0:03:00.9]} 1... d5 {[%clk 0:02:49.3]} 2. c4 {[%clk 0:02:58.2]}
2... c6 {[%clk 0:02:47.7]} 3. e3 {[%clk 0:02:54.1]} 3... Nf6 {[%clk 0:02:47.1]}
4. Nf3 {[%clk 0:02:54.8]} 4... Bf5 {[%clk 0:02:44.2]} 5. b4 {[%clk 0:02:55.4]}
5... e6 {[%clk 0:02:42.2]} 6. Bb2 {[%clk 0:02:55.8]} 6... h6 {[%clk 0:02:36.5]}
7. cxd5 {[%clk 0:02:55.7]} 7... exd5 {[%clk 0:02:35.3]} 8. Be2 {[%clk
0:02:56.5]} 8... Nbd7 {[%clk 0:02:35.1]} 9. O-O {[%clk 0:02:57.1]} 9... Bd6
{[%clk 0:02:34.8]} 10. d3 {[%clk 0:02:57.4]} 10... O-O {[%clk 0:02:32.1]} 11.
Nbd2 {[%clk 0:02:57.7]} 11... Re8 {[%clk 0:02:30.6]} 12. Nb3 {[%clk 0:02:57.6]}
12... Bh7 {[%clk 0:02:29]} 13. Rc1 {[%clk 0:02:57.8]} 13... Qe7 {[%clk
0:02:21.4]} 14. h3 {[%clk 0:02:58.2]} 14... Ne5 {[%clk 0:02:08.1]} 15. Re1
{[%clk 0:02:58.6]} 15... Nxf3+ {[%clk 0:01:53.1]} 16. Bxf3 {[%clk 0:02:59.5]}
16... Be5 {[%clk 0:01:53.9]} 17. Bxe5 {[%clk 0:02:58.1]} 17... Qxe5 {[%clk
0:01:54.8]} 18. Qd2 {[%clk 0:02:53.3]} 18... Nd7 {[%clk 0:01:45.1]} 19. a4
{[%clk 0:02:51.5]} 19... Qd6 {[%clk 0:01:28.4]} 20. Bg4 {[%clk 0:02:37.7]} 20...
Ne5 {[%clk 0:01:21.2]} 21. Be2 {[%clk 0:02:38.3]} 21... Qg6 {[%clk 0:01:21.4]}
22. d4 {[%clk 0:02:32.9]} 22... Nd7 {[%clk 0:01:21.3]} 23. b5 {[%clk 0:02:31.6]}
23... Rac8 {[%clk 0:01:07.4]} 24. Na5 {[%clk 0:02:30.4]} 24... Rc7 {[%clk
0:00:58.1]} 25. Nxb7 {[%clk 0:02:30]} 25... Nf6 {[%clk 0:00:37.7]} 26. Nc5
{[%clk 0:01:54.9]} 26... cxb5 {[%clk 0:00:35.1]} 27. axb5 {[%clk 0:01:55.8]}
27... Rec8 {[%clk 0:00:34.8]} 28. Bd3 {[%clk 0:01:51.7]} 28... Qh5 {[%clk
0:00:34.2]} 29. Bxh7+ {[%clk 0:01:51.6]} 29... Kxh7 {[%clk 0:00:35.1]} 30. Qd3+
{[%clk 0:01:46.3]} 30... Qg6 {[%clk 0:00:31.3]} 31. Qxg6+ {[%clk 0:01:46.3]}
31... Kxg6 {[%clk 0:00:32.2]} 32. Ra1 {[%clk 0:01:46.5]} 32... Nd7 {[%clk
0:00:30.4]} 33. Nd3 {[%clk 0:01:45.5]} 33... Nb6 {[%clk 0:00:09.9]} 34. Ne5+
{[%clk 0:01:36.5]} 34... Kh7 {[%clk 0:00:10.3]} 35. Nc6 {[%clk 0:01:37.2]} 35...
Ra8 {[%clk 0:00:05.1]} 36. Ra6 {[%clk 0:01:36.2]} 36... Nc4 {[%clk 0:00:02.4]}
37. Rea1 {[%clk 0:01:36.4]} 37... Rb7 {[%clk 0:00:02.3]} 38. Nxa7 {[%clk
0:01:31.6]} 38... Nd2 {[%clk 0:00:01.8]} 39. Nc6 {[%clk 0:01:23.4]} 39... Rc8
{[%clk 0:00:01.4]} 40. g3 {[%clk 0:01:17.6]} 40... Rcc7 {[%clk 0:00:01.4]} 41.
Ra7 {[%clk 0:01:16.1]} 41... f6 {[%clk 0:00:01.3]} 42. b6 {[%clk 0:01:14]} 1-0